bitfinex/quotes_ETHUSD_20250507
["timestamp","ask_amount","ask_price","bid_price","bid_amount"]
[1746630316383,3.0,1821.4,1821.2,0.05490111]
[1746630317539,3.0,1821.4,1821.1,5.736]
[1746630317685,3.0,1821.4,1821.2,0.5736]
[1746630318181,3.0,1821.4,1821.2,0.62850156]
[1746630319811,3.0,1821.4,1821.2,0.5736]
[1746630320119,3.0,1821.4,1821.1,5.736]
[1746630320334,8.98191048,1821.2,1821.1,5.736]
[1746630321133,3.0,1821.2,1821.1,5.736]
[1746630321712,3.0,1821.5,1821.2,0.6263]
[1746630321917,5.98191048,1821.8,1821.3,0.05489354]
[1746630322117,5.98191048,1821.8,1821.3,0.42301289]
[1746630322318,3.0,1821.7,1821.3,0.42301289]
[1746630322512,5.98191048,1821.8,1821.3,0.42301289]
[1746630322715,5.98191048,1821.8,1821.3,0.36811935]
[1746630323296,5.98191048,1821.8,1821.4,0.6263]
[1746630323498,5.98191048,1821.8,1821.5,5.736]
[1746630323694,5.98191048,1821.8,1821.5,6.37223]
[1746630324120,5.98191048,1821.8,1821.6,0.05488923]
[1746630324483,5.98191048,1822.0,1821.6,0.05488923]
[1746630324689,3.64467308,1822.3,1821.5,6.37223]
[1746630324690,5.98191048,1822.2,1821.5,6.37223]
[1746630324888,4.43437308,1822.3,1821.7,0.6263]
[1746630325086,3.64467308,1822.3,1821.8,0.05487635]
[1746630325291,3.0,1822.2,1821.9,5.736]
[1746630325543,3.0,1822.2,1822.0,0.68117491]
[1746630325708,3.64467308,1822.3,1822.0,0.68117491]
[1746630326631,3.64467308,1822.3,1822.0,3.68117491]
[1746630326997,3.64467308,1822.3,1822.0,3.6263]
[1746630327205,3.64467308,1822.3,1822.0,0.6263]
[1746630327411,3.64467308,1822.3,1821.8,0.6263]
[1746630327412,5.98191048,1822.2,1821.8,0.6263]
[1746630327607,8.98191048,1822.0,1821.9,5.735]
[1746630328389,9.78861048,1822.0,1821.9,5.735]
[1746630329197,10.76747153,1822.0,1821.9,5.735]
[1746630331733,3.0,1821.9,1821.8,18.0]
[1746630331932,3.32889133,1821.9,1821.8,18.0]
[1746630332307,4.10969133,1821.9,1821.8,18.0]
[1746630332650,0.7808,1821.8,1821.5,16.00967607]
[1746630332812,3.0,1821.5,1821.3,5.735]
[1746630333133,0.32658203,1821.4,1821.3,5.735]
[1746630338355,3.0,1821.7,1821.3,6.3085]
[1746630338633,0.32674776,1821.6,1821.3,6.3085]
[1746630338839,3.0,1821.4,1821.3,5.735]
[1746630339043,5.98191048,1821.5,1821.3,5.735]
[1746630339044,0.32674776,1821.6,1821.3,6.3613]
[1746630339205,0.32535143,1821.4,1821.3,6.3613]
[1746630339552,0.32551517,1821.4,1821.3,5.735]
[1746630339737,4.23610407,1821.7,1821.3,5.735]
[1746630339940,0.32638609,1821.6,1821.3,5.735]
[1746630340324,3.0,1821.4,1821.3,5.735]
[1746630340628,3.32526955,1821.4,1821.3,5.735]
[1746630341545,0.32526955,1821.4,1821.3,5.735]
[1746630341750,4.23610407,1821.7,1821.3,5.735]
[1746630342047,0.32630422,1821.6,1821.4,0.05489707]
[1746630342815,0.32630422,1821.6,1821.3,5.735]
[1746630343002,0.32630422,1821.6,1821.4,0.05489708]
[1746630344749,0.32630422,1821.6,1821.3,6.3085]
[1746630345535,0.32630422,1821.6,1821.3,5.735]
[1746630349250,0.32630422,1821.6,1821.4,0.6263]
[1746630349451,0.04078803,1821.6,1821.5,3.6263]
[1746630349639,0.2741555,1821.6,1821.5,3.6263]
[1746630349845,3.7733,1822.4,1821.6,0.6263]
[1746630350152,0.25019454,1822.3,1821.7,5.7878784]
[1746630350756,0.25019454,1822.3,1821.8,0.6263]
[1746630350934,0.25019454,1822.3,1821.9,0.05487836]
[1746630351137,11.51700779,1822.4,1821.9,0.05487836]
[1746630351360,0.25068552,1822.3,1821.9,0.05487836]
[1746630351571,11.51700779,1822.4,1821.9,0.05487836]
[1746630351725,0.25068552,1822.3,1821.9,0.05487836]
[1746630351920,11.51700779,1822.4,1821.9,0.05487836]
[1746630352225,0.25068552,1822.3,1821.9,0.05487836]
[1746630352443,0.25068552,1822.3,1821.8,0.6263]
[1746630352653,0.7733,1822.4,1821.8,0.6263]
[1746630352842,0.25041404,1822.2,1821.9,0.05487421]
[1746630353165,0.24981526,1822.1,1821.8,0.6263]
[1746630353364,0.7733,1822.4,1821.9,0.05487443]
[1746630353537,0.25068552,1822.3,1821.9,0.05487443]
[1746630353865,0.7733,1822.4,1821.9,3.0]
[1746630354063,0.25025041,1822.2,1822.0,0.3]
[1746630354265,0.2506037,1822.3,1822.1,5.732]
[1746630354453,3.0,1822.5,1822.1,5.732]
[1746630355251,3.0,1822.5,1822.1,6.3583]
[1746630355686,3.0,1822.5,1822.2,0.05486996]
[1746630355873,3.0,1822.5,1822.2,0.69618696]
[1746630356090,6.80231048,1822.6,1822.2,0.641317]
[1746630356474,3.0,1822.5,1822.2,0.641317]
[1746630356936,0.25095696,1822.4,1822.2,0.641317]
[1746630357355,6.23286744,1822.4,1822.2,0.641317]
[1746630357532,6.23286744,1822.4,1822.1,5.732]
[1746630362243,3.8026,1822.3,1822.1,5.732]
[1746630362448,5.98191048,1822.2,1822.1,5.732]
[1746630362648,6.23639072,1822.2,1822.1,5.732]
[1746630367762,9.23639072,1822.2,1822.1,5.732]
[1746630368280,3.25448024,1822.2,1822.1,5.732]
[1746630371488,9.23639072,1822.2,1822.0,5.728]
[1746630371691,3.0,1822.1,1822.0,5.728]
[1746630372204,0.7955,1822.0,1821.8,5.728]
[1746630372417,9.23417634,1821.9,1821.8,5.728]
[1746630373818,3.25226586,1821.9,1821.8,5.728]
[1746630374712,3.25226586,1821.9,1821.8,8.33258759]
[1746630375011,9.98847634,1821.9,1821.8,5.728]
[1746630375510,3.25226586,1821.9,1821.8,5.728]
[1746630376822,9.23417634,1821.9,1821.8,5.728]
[1746630379082,0.25226586,1821.9,1821.8,5.728]
[1746630380110,0.25157526,1821.9,1821.8,5.728]
[1746630380304,0.25157526,1821.9,1821.5,0.6263]
[1746630380305,0.57673279,1821.9,1821.3,0.6263]
[1746630380512,3.0,1821.5,1821.4,5.729]
[1746630380808,3.8171,1821.5,1821.4,5.729]
[1746630381178,4.0663083,1821.5,1821.4,5.729]
[1746630381370,4.0663083,1821.5,1821.2,19.77]
[1746630381573,8.98191048,1821.3,1821.2,19.77]
[1746630381773,8.98191048,1821.3,1820.8,5.729]
[1746630381774,3.8171,1821.2,1820.8,5.729]
[1746630382011,8.98191048,1820.9,1820.8,5.729]
[1746630382173,9.22716995,1820.9,1820.8,5.729]
[1746630382870,3.24525947,1820.9,1820.8,5.729]
[1746630383102,3.24525947,1820.9,1820.8,6.3019]
[1746630383299,0.24525947,1820.9,1820.8,6.3019]
[1746630383771,0.24285044,1820.9,1820.8,6.3019]
[1746630383976,3.0,1821.2,1820.8,6.3019]
[1746630384270,0.24372191,1821.1,1820.8,6.3019]
[1746630384475,0.24372191,1821.1,1821.0,0.6263]
[1746630384779,0.7506,1821.6,1821.0,0.6263]
[1746630385001,0.24546426,1821.5,1821.0,0.6263]
[1746630385211,6.22737474,1821.5,1821.0,0.6263]
[1746630385511,5.98191048,1821.2,1820.8,6.3553]
[1746630385674,6.73251048,1821.2,1820.9,5.73]
[1746630385882,0.24372191,1821.1,1821.0,5.73]
[1746630388081,0.99582191,1821.1,1821.0,5.73]
[1746630389717,3.99582191,1821.1,1821.0,5.73]
[1746630390419,4.99359515,1821.1,1821.0,5.73]
[1746630390927,4.99359515,1821.1,1820.7,5.731]
[1746630391216,3.0,1820.8,1820.7,5.731]
[1746630391415,3.23666226,1820.8,1820.7,5.731]
[1746630391795,0.23666226,1820.8,1820.7,5.731]
[1746630391993,3.7521,1821.1,1820.7,6.3041]
[1746630392296,0.2376161,1821.0,1820.7,5.731]
[1746630392495,3.0,1820.9,1820.7,5.731]
[1746630392809,0.23674421,1820.8,1820.7,5.731]
[1746630394294,9.21865469,1820.8,1820.7,5.731]
[1746630394744,10.04305469,1820.8,1820.7,5.731]
[1746630395030,11.04736016,1820.8,1820.7,5.731]
[1746630397235,3.0,1820.7,1820.4,25.501]
[1746630397431,0.23624049,1820.6,1820.4,25.501]
[1746630397606,3.0,1820.7,1820.4,25.501]
[1746630397790,3.0,1820.5,1820.4,25.501]
[1746630397991,0.2344107,1820.5,1820.4,25.501]
[1746630398194,3.0,1820.7,1820.4,25.501]
[1746630398392,0.23492886,1820.6,1820.4,25.501]
[1746630398606,3.0,1820.7,1820.4,25.501]
[1746630398887,3.0,1820.7,1820.0,0.6263]
[1746630398888,3.0,1820.5,1820.0,0.6263]
[1746630399123,3.0,1820.2,1820.0,5.73]
[1746630399432,9.21178662,1820.1,1820.0,5.73]
[1746630400037,0.22987614,1820.1,1820.0,5.73]
[1746630400326,3.0,1820.6,1820.0,6.303]
[1746630400533,9.75341048,1820.9,1820.1,0.6263]
[1746630400700,3.0,1820.6,1820.1,0.6263]
[1746630401444,5.98191048,1820.3,1820.0,5.73]
[1746630401613,3.0,1820.2,1820.0,5.73]
[1746630402848,8.98191048,1820.1,1820.0,5.73]
[1746630404535,3.0,1820.1,1820.0,5.73]
[1746630405536,8.98191048,1820.1,1820.0,5.73]
[1746630406638,9.74651048,1820.1,1820.0,5.73]
[1746630407730,8.98191048,1820.1,1820.0,5.73]
[1746630408426,3.0,1820.1,1820.0,5.73]
[1746630408934,3.22971254,1820.1,1820.0,5.73]
[1746630412344,9.21162302,1820.1,1820.0,5.73]
[1746630412542,3.0,1820.0,1819.7,5.732]
[1746630412742,10.28719427,1820.1,1819.7,5.732]
[1746630412743,9.73451048,1819.8,1819.7,5.732]
[1746630413039,3.0,1819.7,1819.6,19.782]
[1746630413212,3.22587373,1819.7,1819.4,5.732]
[1746630413402,3.0,1819.5,1819.4,5.732]
[1746630413602,3.22500035,1819.5,1819.4,5.732]
[1746630415257,3.22500035,1819.5,1819.1,5.732]
[1746630415258,0.7618,1819.4,1819.1,5.732]
[1746630415455,3.0,1819.2,1819.1,5.732]
[1746630415610,0.21954475,1819.2,1819.1,5.732]
[1746630415973,3.7618,1819.4,1819.1,5.732]
[1746630416124,0.21954475,1819.2,1819.1,5.732]
[1746630416324,3.7618,1819.4,1819.1,5.732]
[1746630416526,0.21954475,1819.2,1819.1,5.732]
[1746630416708,3.7618,1819.4,1819.1,5.732]
[1746630416909,0.21954475,1819.2,1819.1,5.732]
[1746630417109,3.7618,1819.4,1819.1,5.732]
[1746630417352,0.21954475,1819.2,1819.1,5.732]
[1746630417553,3.7618,1819.4,1819.1,5.732]
[1746630417856,3.7728,1819.6,1819.1,6.9315]
[1746630418065,0.2208555,1819.5,1819.2,0.05496828]
[1746630418211,0.2208555,1819.5,1819.3,0.6263]
[1746630418564,3.0,1820.0,1819.4,0.05495146]
[1746630418712,6.75471048,1820.1,1819.5,6.3593]
[1746630418916,0.19831305,1819.9,1819.6,5.78794968]
[1746630419233,0.20279921,1819.8,1819.6,5.78794968]
[1746630419409,3.0,1820.0,1819.6,5.78794968]
[1746630419609,0.20732861,1819.9,1819.7,0.6263]
[1746630419919,3.0,1820.0,1819.8,0.05494454]
[1746630420117,6.80611048,1820.3,1819.8,0.05494454]
[1746630420504,3.0,1820.2,1819.7,0.6263]
[1746630420707,3.0,1820.2,1819.8,0.05494149]
[1746630421509,3.64572249,1820.9,1819.9,0.6263]
[1746630421715,5.98191048,1820.6,1820.0,5.733]
[1746630422016,3.0,1820.5,1820.0,5.733]
[1746630422232,8.98191048,1820.1,1820.0,5.733]
[1746630422612,11.52869684,1820.8,1820.0,5.733]
[1746630422613,6.75261048,1820.5,1820.0,5.733]
[1746630423049,3.0,1820.4,1820.0,5.733]
[1746630423236,3.0,1820.4,1820.0,6.36893]
[1746630423851,0.1950042,1820.3,1820.0,6.36893]
[1746630424148,0.1950042,1820.3,1820.1,0.05493492]
[1746630424327,3.0,1820.2,1820.0,5.733]
[1746630424664,9.17604259,1820.1,1820.0,5.733]
[1746630426129,3.19413211,1820.1,1820.0,5.733]
[1746630426336,9.17604259,1820.1,1820.0,5.733]
[1746630426737,10.09364685,1820.1,1820.0,5.733]
[1746630426927,3.0,1820.0,1819.8,25.526]
[1746630427141,8.98191048,1819.9,1819.8,25.526]
[1746630427329,9.17528344,1819.9,1819.8,25.526]
[1746630429351,9.94768344,1819.9,1819.8,25.526]
[1746630432284,10.94245178,1819.9,1819.8,5.733]
[1746630432468,3.0,1819.8,1819.1,1.1995]
[1746630432629,8.98191048,1819.5,1819.4,5.732]
[1746630432819,9.17064017,1819.5,1819.4,5.732]
[1746630435450,0.18872969,1819.5,1819.4,5.732]
[1746630435627,0.7843,1820.3,1819.5,0.6263]
[1746630435833,0.16009005,1820.2,1819.7,0.6263]
[1746630436029,5.98191048,1820.3,1819.9,0.6263]
[1746630436360,0.15925972,1820.2,1820.0,5.78793749]
[1746630436532,0.15925972,1820.2,1820.0,6.42936124]
[1746630437060,0.13498099,1820.1,1820.0,6.42936124]
[1746630437225,3.64572249,1820.5,1820.0,6.42936124]
[1746630437420,0.1386002,1820.4,1820.1,20.4193]
[1746630437664,0.1386002,1820.4,1820.3,0.6263]
[1746630438641,0.1386002,1820.4,1820.2,0.51207916]
[1746630438965,3.1386002,1820.4,1820.1,19.793]
[1746630439747,3.1386002,1820.4,1820.2,0.05493257]
[1746630439949,3.1386002,1820.4,1820.2,2.03972583]
[1746630440224,3.1386002,1820.4,1820.2,1.98479326]
[1746630440960,3.1386002,1820.4,1820.1,19.793]
[1746630441746,0.1386002,1820.4,1820.2,0.05493691]
[1746630442055,0.8192,1820.7,1820.2,0.05493691]
[1746630442266,0.14130507,1820.6,1820.2,0.05493691]
[1746630442471,9.11614405,1820.8,1820.2,2.0397306]
[1746630442773,0.14174087,1820.7,1820.2,2.0397306]
[1746630443563,0.14174087,1820.7,1820.3,0.6263]
[1746630443764,0.14174087,1820.7,1820.4,5.731]
[1746630444260,9.11614405,1820.5,1820.4,5.731]
[1746630444559,9.25611878,1820.5,1820.4,5.731]
[1746630445204,3.13997473,1820.5,1820.4,5.731]
[1746630445403,3.13997473,1820.5,1820.4,6.3041]
[1746630445707,3.13997473,1820.5,1820.4,6.9304]
[1746630446089,0.13997473,1820.5,1820.4,6.9304]
[1746630446363,6.86994405,1821.1,1820.4,6.9304]
[1746630446568,6.88994405,1821.4,1820.6,0.6263]
[1746630446801,0.14409363,1821.0,1820.7,0.05491073]
[1746630447098,0.13588843,1820.9,1820.8,6.3573]
[1746630447512,5.84055196,1821.6,1820.8,6.41220524]
[1746630447669,0.13367634,1820.9,1820.8,6.3573]
[1746630447867,4.41952249,1821.6,1820.8,6.41220535]
[1746630448207,3.13645353,1821.5,1821.0,0.6263]
[1746630448404,3.13645353,1821.5,1821.1,0.05489973]
[1746630448706,3.13645353,1821.5,1821.2,5.731]
[1746630449008,3.13645353,1821.5,1821.3,0.05489973]
[1746630449364,3.13645353,1821.5,1821.2,5.731]
[1746630449365,6.11614405,1821.4,1821.2,5.731]
[1746630449560,3.0,1821.3,1821.2,5.731]
[1746630449765,3.13525494,1821.3,1821.2,5.731]
[1746630452279,3.13525494,1821.3,1820.9,5.729]
[1746630452494,3.0,1820.9,1820.7,5.729]
[1746630452702,0.13192915,1820.8,1820.7,5.729]
[1746630453721,0.13192915,1820.8,1820.7,5.78392129]
[1746630454084,0.8225,1821.4,1820.7,5.78392129]
[1746630454283,0.13554367,1821.3,1820.7,5.78392129]
[1746630454596,0.13554367,1821.3,1820.9,0.6263]
[1746630454798,0.13554367,1821.3,1821.0,0.05490851]
[1746630455021,0.8225,1821.4,1821.1,5.729]
[1746630455221,0.13541094,1821.2,1821.1,5.729]
[1746630455422,9.94444405,1821.6,1821.1,5.729]
[1746630455637,0.13647603,1821.2,1821.1,5.729]
[1746630455842,11.95888845,1821.6,1821.1,5.729]
[1746630455986,0.1355178,1821.2,1821.1,5.729]
[1746630456185,6.94444405,1821.6,1821.1,5.729]
[1746630456385,0.13609138,1821.2,1821.1,5.729]
[1746630456624,3.0,1821.5,1821.1,5.729]
[1746630456917,3.0,1821.2,1821.1,5.729]
[1746630457336,4.83377512,1821.2,1821.1,5.729]
[1746630457574,4.83377512,1821.2,1820.8,5.736]
[1746630457867,9.11614405,1820.9,1820.8,5.736]
[1746630458055,9.251003,1820.9,1820.8,5.736]
[1746630459131,10.076103,1820.9,1820.8,5.736]
[1746630459331,11.0837133,1820.9,1820.8,5.736]
[1746630459721,3.0,1820.8,1820.5,5.736]
[1746630459922,9.11614405,1820.6,1820.5,5.736]
[1746630460426,9.24893321,1820.6,1820.5,5.736]
[1746630461066,3.13278916,1820.6,1820.5,5.736]
[1746630461371,0.13278916,1820.6,1820.5,6.9359]
[1746630461723,3.8283,1821.1,1820.5,6.99081746]
[1746630461928,0.13101565,1820.6,1820.5,6.99081746]
[1746630462158,3.8283,1821.1,1820.5,6.9359]
[1746630462639,0.13185739,1821.0,1820.6,0.0549181]
[1746630462844,0.13185739,1821.0,1820.6,0.75399991]
[1746630463047,0.8283,1821.3,1820.6,0.75399991]
[1746630463245,0.13311016,1821.2,1820.6,0.75399991]
[1746630464367,0.13311016,1821.2,1820.6,0.69908181]
[1746630464577,3.0,1821.1,1820.6,0.69908181]
[1746630464933,0.13301554,1821.0,1820.6,0.69908181]
[1746630465769,0.13301554,1821.0,1820.7,0.05491482]
[1746630466071,0.13301554,1821.0,1820.6,1.21131604]
[1746630467380,0.13301554,1821.0,1820.7,0.05491487]
[1746630468705,0.13301554,1821.0,1820.8,0.6263]
[1746630468970,0.13301554,1821.0,1820.9,5.79091111]
[1746630469169,0.13301554,1821.0,1820.9,6.43263222]
[1746630470293,0.13301554,1821.0,1820.9,6.37772111]
[1746630471201,0.13301554,1821.0,1820.9,5.736]
[1746630473004,6.10944725,1821.0,1820.9,5.736]
[1746630473211,0.13301554,1821.0,1820.9,5.736]
[1746630475708,0.13301554,1821.0,1820.9,6.87563138]
[1746630475913,3.0,1821.1,1820.9,6.87563138]
[1746630476108,3.0,1821.1,1821.0,0.68756314]
[1746630477322,3.0,1821.5,1821.0,0.68756314]
[1746630477527,3.0,1821.5,1821.1,0.05490395]
[1746630479127,3.0,1821.5,1821.0,1.62054475]
[1746630481620,3.0,1821.3,1821.0,1.62054475]
[1746630482219,2.95,1821.3,1821.0,1.62054475]
[1746630483825,5.97643171,1821.1,1821.0,1.20077264]
[1746630484025,5.97643171,1821.1,1821.0,0.5132095]
[1746630484239,9.09026749,1821.1,1821.0,0.5132095]
[1746630484850,9.09026749,1821.1,1820.6,5.4593]
[1746630485023,5.97643171,1820.9,1820.6,6.00523]
[1746630485433,0.11114563,1820.8,1820.6,6.00523]
[1746630485618,0.11114563,1820.8,1820.7,0.05491833]
[1746630485829,0.7934,1821.4,1820.8,0.6263]
[1746630486035,5.97643171,1821.5,1820.9,0.05490484]
[1746630486345,5.97643171,1821.2,1820.8,0.6263]
[1746630486747,0.1245929,1821.1,1820.8,0.6263]
[1746630487313,0.1245929,1821.1,1820.9,0.05490754]
[1746630487510,0.7816,1821.6,1821.0,0.6263]
[1746630487511,3.0,1821.5,1821.0,0.6263]
[1746630487715,0.12796107,1821.4,1821.0,0.6263]
[1746630488656,3.0,1821.3,1821.0,0.6263]
[1746630489029,0.12635364,1821.2,1821.0,0.6263]
[1746630491271,6.10278535,1821.2,1820.8,0.6263]
[1746630491426,6.10278535,1821.2,1820.9,4.832]
[1746630491622,6.10278535,1821.2,1820.9,5.37783]
[1746630492858,6.10278535,1821.2,1820.9,5.43274012]
[1746630493042,6.10278535,1821.2,1820.9,5.37783]
[1746630493247,5.97643171,1821.0,1820.9,4.832]
[1746630493559,3.0,1820.9,1820.7,6.04]
[1746630493749,0.12481668,1821.0,1820.9,0.6263]
[1746630493946,3.0,1821.3,1820.9,0.6812098]
[1746630494246,3.0,1821.3,1820.9,1.23253078]
[1746630494555,3.0,1821.5,1820.9,1.23253078]
[1746630495983,3.0,1821.5,1820.9,1.17762098]
[1746630496679,3.0,1821.5,1821.0,0.51377821]
[1746630497581,5.97643171,1821.4,1821.1,0.51377821]
[1746630497783,9.76033171,1821.2,1821.1,0.51377821]
[1746630498275,9.76033171,1821.2,1820.8,4.832]
[1746630498676,8.97643171,1821.2,1820.9,0.05490948]
[1746630498876,5.97643171,1821.4,1821.0,0.6263]
[1746630499176,3.0,1821.3,1821.1,0.05490487]
[1746630499567,3.0,1821.3,1821.0,0.6263]
[1746630500082,3.0,1821.3,1821.0,5.4583]
[1746630500287,3.0,1821.3,1821.1,0.54583]
[1746630501084,3.0,1821.3,1821.1,1.05965895]
[1746630502087,3.0,1821.3,1821.1,1.11456404]
[1746630502396,11.3244991,1822.0,1821.2,0.6263]
[1746630502397,0.8216,1821.8,1821.2,0.6263]
[1746630502600,6.79403171,1822.0,1821.3,0.05489357]
[1746630502892,3.0,1821.9,1821.4,0.51382895]
[1746630503997,0.8176,1822.0,1821.5,5.51319181]
[1746630504196,3.64572249,1822.1,1821.5,5.4583]
[1746630504397,3.0,1822.0,1821.5,5.4583]
[1746630504560,3.0,1822.0,1821.6,0.51382895]
[1746630504760,3.0,1822.0,1821.6,1.11104184]
[1746630505174,3.0,1822.0,1821.7,0.6263]
[1746630505363,8.97643171,1822.0,1821.7,0.6263]
[1746630506695,8.97643171,1822.0,1821.6,0.59721289]
[1746630509994,5.75878046,1822.4,1821.5,4.832]
[1746630509995,5.97643171,1821.8,1821.5,4.832]
[1746630510381,8.97643171,1821.6,1821.5,4.832]
[1746630511686,3.0,1821.6,1821.5,4.832]
[1746630513088,9.75873171,1821.6,1821.5,4.832]
[1746630514615,3.0,1821.5,1821.1,4.83]
[1746630514820,3.0,1821.5,1821.1,5.74210361]
[1746630515516,3.0,1821.7,1821.3,0.6263]
[1746630515735,5.97643171,1821.8,1821.4,0.05489437]
[1746630516022,5.97643171,1821.8,1821.3,0.6263]
[1746630516412,3.0,1821.7,1821.4,0.05489439]
[1746630516720,16.97753171,1822.2,1821.5,0.6263]
[1746630516892,8.47528488,1822.2,1821.6,4.88488772]
[1746630517094,3.0,1822.1,1821.6,4.88488772]
[1746630518291,3.0,1821.9,1821.6,4.83]
[1746630518710,3.0,1821.7,1821.6,4.83]
[1746630520023,3.0,1821.7,1821.3,5.4563]
[1746630520330,5.97643171,1821.6,1821.3,5.4563]
[1746630520503,5.97643171,1821.6,1821.4,0.54563]
[1746630521423,5.97643171,1821.9,1821.4,0.54563]
[1746630521591,3.0,1821.8,1821.5,0.05489387]
[1746630521992,5.97643171,1822.1,1821.6,0.6263]
[1746630522392,3.0,1822.0,1821.6,0.6263]
[1746630522727,3.0,1822.0,1821.7,0.0548891]
[1746630523116,3.8134,1822.2,1821.7,0.0548891]
[1746630523311,0.15464822,1822.1,1821.7,0.0548891]
[1746630523512,3.8134,1822.2,1821.8,4.83]
[1746630523728,0.15526198,1822.1,1821.8,5.31848891]
[1746630523928,3.8134,1822.2,1821.8,5.31848891]
[1746630524125,3.0,1822.0,1821.8,5.31848891]
[1746630524325,6.13026567,1821.9,1821.8,4.83]
[1746630524519,9.13026567,1821.9,1821.8,4.83]
[1746630525115,3.15383396,1821.9,1821.8,4.83]
[1746630525624,0.15383396,1821.9,1821.8,4.83]
[1746630525929,3.0,1822.2,1821.8,5.4563]
[1746630526141,0.12862973,1822.1,1821.9,0.60051006]
[1746630526385,3.0,1822.2,1821.9,0.60051006]
[1746630526566,0.12643844,1822.0,1821.9,0.60051006]
[1746630526767,6.80023171,1822.5,1821.9,0.60051006]
[1746630527045,3.13019519,1822.4,1821.9,4.83]
[1746630527343,0.13019519,1822.4,1821.9,4.83]
[1746630527697,3.13019519,1822.4,1821.9,4.83]
[1746630528827,5.97643171,1822.3,1821.9,4.83]
[1746630529033,5.97643171,1822.3,1821.9,5.34282951]
[1746630529237,0.12909415,1822.2,1822.0,0.53428295]
[1746630531426,0.12909415,1822.2,1822.0,0.58915869]
[1746630531739,0.12909415,1822.2,1822.0,0.53428295]
[1746630534831,0.12909415,1822.2,1822.1,0.6263]
[1746630536400,0.12909415,1822.2,1822.1,0.6811758]
[1746630536840,3.0,1822.4,1822.1,0.6811758]
[1746630537005,0.10995946,1822.2,1822.1,0.6811758]
[1746630537204,3.0,1822.4,1822.1,0.6811758]
[1746630537430,0.27443128,1822.7,1822.1,0.6811758]
[1746630537431,0.11036838,1822.2,1822.1,0.6811758]
[1746630537640,5.97643171,1822.7,1822.1,0.6811758]
[1746630537839,0.11053285,1822.2,1822.1,0.6811758]
[1746630538137,0.11020563,1822.2,1822.1,0.6811758]
[1746630538436,3.0,1822.6,1822.1,0.6811758]
[1746630538642,0.10979659,1822.2,1822.1,0.6811758]
[1746630538849,3.0,1822.6,1822.1,0.6811758]
[1746630539061,0.10996021,1822.2,1822.1,0.6811758]
[1746630539261,3.0,1822.6,1822.1,0.6811758]
[1746630539764,0.11142872,1822.5,1822.1,0.6811758]
[1746630540829,0.11142872,1822.5,1822.1,1.09571261]
[1746630541732,3.7593,1822.8,1822.1,1.09571261]
[1746630541930,0.1131978,1822.7,1822.1,1.09571261]
[1746630542758,0.1131978,1822.7,1822.1,0.46941261]
[1746630543057,0.1131978,1822.7,1822.2,0.6263]
[1746630543745,0.1131978,1822.7,1822.3,0.05486561]
[1746630544085,3.0,1822.6,1822.3,0.05486561]
[1746630544230,5.97643171,1822.5,1822.2,0.6263]
[1746630544424,6.09142239,1822.5,1822.2,0.6263]
[1746630545064,0.7605,1822.4,1822.1,5.33762031]
[1746630545264,5.97643171,1822.3,1822.1,4.826]
[1746630545567,6.0897378,1822.3,1822.1,4.826]
[1746630550343,3.0,1822.2,1822.1,4.826]
[1746630550660,0.8197,1822.1,1821.8,4.826]
[1746630550872,3.0,1821.9,1821.8,4.826]
[1746630551158,3.11044625,1821.9,1821.8,4.826]
[1746630552011,0.7992,1821.8,1821.4,16.69666612]
[1746630552174,5.97643171,1821.7,1821.4,4.21036612]
[1746630552372,0.10755072,1821.6,1821.5,0.42103661]
[1746630552686,3.10755072,1821.6,1821.5,0.42103661]
[1746630552863,3.10755072,1821.6,1821.4,3.66473612]
[1746630553191,9.77673171,1821.5,1821.4,3.66473612]
[1746630553486,9.77673171,1821.5,1821.4,3.64025126]
[1746630554387,3.0,1821.4,1820.9,3.64025126]
[1746630554559,3.0,1821.4,1821.0,0.05490733]
[1746630555155,5.97643171,1821.3,1820.9,4.54950639]
[1746630555355,5.97643171,1821.3,1820.9,3.64025126]
[1746630555356,3.0,1821.2,1820.9,3.64025126]
[1746630555551,3.0,1821.0,1820.9,9.35725126]
[1746630557714,3.8193,1821.0,1820.9,3.64025126]
[1746630559271,3.8193,1821.0,1820.6,5.718]
[1746630559472,3.0,1820.7,1820.6,5.718]
[1746630560104,3.0,1821.1,1820.6,6.9161]
[1746630560312,6.77263171,1821.2,1820.7,0.05491329]
[1746630560486,3.0,1821.1,1820.6,6.9161]
[1746630560670,3.0,1821.1,1820.7,0.05491176]
[1746630561096,3.0,1821.1,1820.8,0.6263]
[1746630561382,3.0,1821.1,1820.9,0.05491178]
[1746630561709,3.0,1821.1,1821.0,5.719]
[1746630562478,3.89764317,1821.1,1821.0,5.719]
[1746630562904,4.70424317,1821.1,1820.6,5.72]
[1746630563108,5.97643171,1820.8,1820.6,5.72]
[1746630563791,3.0,1820.7,1820.6,5.72]
[1746630564506,3.0,1820.9,1820.6,5.72]
[1746630566912,6.72733171,1821.2,1820.7,0.6263]
[1746630567094,6.72733171,1821.2,1820.7,0.68121973]
[1746630567095,3.0,1821.1,1820.7,0.68121973]
[1746630567708,3.0,1821.1,1820.7,0.6263]
[1746630568087,3.0,1821.1,1820.8,0.05491311]
[1746630568380,5.97643171,1821.2,1820.8,0.05491311]
[1746630568612,3.0,1821.1,1820.8,0.05491311]
[1746630568971,5.97643171,1821.2,1820.8,0.05491311]
[1746630569312,3.0,1821.1,1820.8,0.05491311]
[1746630569901,3.0,1821.3,1820.9,0.6263]
[1746630570102,3.0,1821.3,1821.0,5.77590669]
[1746630570298,6.80113171,1821.6,1821.0,6.41612736]
[1746630570891,3.0,1821.5,1821.1,0.6263]
[1746630571122,3.0,1821.5,1821.2,0.05490281]